lending/lending_fUSD_20240710
["ID","MTS","AMOUNT","RATE_DAILY","PERIOD"]
[331626246,1720591843888,-1580.22,0.00013698,2]
[331626247,1720591843898,-500.0,0.00013698,2]
[331626248,1720591843908,-500.0,0.00013698,2]
[331626249,1720591843918,-500.0,0.00013698,2]
[331626250,1720591843928,-500.0,0.00013698,2]
[331626251,1720591843937,-500.0,0.00013698,2]
[331626252,1720591843948,-500.0,0.00013698,2]
[331626253,1720591843958,-500.0,0.00013698,2]
[331626254,1720591843967,-500.0,0.00013698,2]
[331626255,1720591843982,-500.0,0.00013698,2]
[331626256,1720591843992,-500.0,0.00013698,2]
[331626257,1720591844004,-550.4432963,0.00013698,2]
[331626258,1720591844014,-1839.5,0.00013698,2]
[331626259,1720591844024,-500.0,0.00013698,2]
[331626260,1720591844035,-500.0,0.00013698,2]
[331626261,1720591844045,-1632.98,0.00013698,2]
[331626262,1720591844054,-500.0,0.00013698,2]
[331626263,1720591844064,-662.75,0.00013698,2]
[331626264,1720591844074,-500.0,0.00013698,2]
[331626265,1720591844084,-1497.55,0.00013698,2]
[331626266,1720591844096,-190.39949462,0.00013698,2]
[331626267,1720591844107,-500.0,0.00013698,2]
[331626268,1720591844119,-622.54,0.00013698,2]
[331626269,1720591844129,-500.0,0.00013698,2]
[331626270,1720591844140,-500.0,0.00013698,2]
[331626271,1720591844150,-500.0,0.00013698,2]
[331626272,1720591844160,-500.0,0.00013698,2]
[331626273,1720591844170,-500.0,0.00013698,2]
[331626274,1720591844181,-500.0,0.00013698,2]
[331626275,1720591844190,-500.0,0.00013698,2]
[331626276,1720591844200,-500.0,0.00013698,2]
[331626277,1720591844210,-500.0,0.00013698,2]
[331626278,1720591844220,-668.41,0.00013698,2]
[331626279,1720591844230,-500.0,0.00013698,2]
[331626280,1720591844239,-500.0,0.00013698,2]
[331626281,1720591844250,-500.0,0.00013698,2]
[331626282,1720591844260,-1945.06,0.00013698,2]
[331626283,1720591844270,-557.57,0.00013698,2]
[331626284,1720591844281,-396.87798516,0.00013698,2]
[331626285,1720591844291,-500.0,0.00013698,2]
[331626286,1720591844301,-500.0,0.00013698,2]
[331626287,1720591844311,-500.0,0.00013698,2]
[331626288,1720591844321,-500.0,0.00013698,2]
[331626289,1720591844331,-151.0,0.00013698,2]
[331626290,1720591844341,-151.0,0.00013698,2]
[331626291,1720591844352,-500.0,0.00013698,2]
[331626292,1720591844362,-1176.59,0.00013698,2]
[331626293,1720591844372,-1234.37,0.00013698,2]
[331626294,1720591844382,-151.0,0.00013698,2]
[331626295,1720591844392,-500.0,0.00013698,2]
[331626296,1720591844401,-151.0,0.00013698,2]
[331626297,1720591844411,-736.09,0.00013698,2]
[331626298,1720591844421,-500.0,0.00013698,2]
[331626299,1720591844435,-682.16,0.00013698,2]
[331626300,1720591844445,-500.0,0.00013698,2]
[331626301,1720591844455,-599.25266333,0.00013698,2]
[331626302,1720591844465,-1717.94,0.00013698,2]
[331626303,1720591844475,-500.0,0.00013698,2]
[331626304,1720591844486,-500.0,0.00013698,2]
[331626305,1720591844496,-733.41,0.00013698,2]
[331626306,1720591844507,-1437.31,0.00013698,2]
[331626307,1720591844518,-500.0,0.00013698,2]
[331626308,1720591844528,-994.64,0.00013698,2]
[331626309,1720591844539,-679.17,0.00013698,2]
[331626310,1720591844550,-500.0,0.00013698,2]
[331626311,1720591844560,-183.54459306,0.00013698,2]
[331626312,1720591844570,-500.0,0.00013698,2]
[331626313,1720591844580,-957.11,0.00013698,2]
[331626314,1720591844590,-933.69,0.00013698,2]
[331626315,1720591844601,-500.0,0.00013698,2]
[331626316,1720591844610,-151.0,0.00013698,2]
[331626317,1720591844620,-151.0,0.00013698,2]
[331626318,1720591844630,-1403.15,0.00013698,2]
[331626319,1720591844639,-500.0,0.00013698,2]
[331626320,1720591844649,-627.22,0.00013698,2]
[331626321,1720591844659,-500.0,0.00013698,2]
[331626322,1720591844668,-500.0,0.00013698,2]
[331626323,1720591844678,-1435.43,0.00013698,2]
[331626324,1720591844687,-500.0,0.00013698,2]
[331626325,1720591844697,-818.96,0.00013698,2]
[331626326,1720591844707,-500.0,0.00013698,2]
[331626327,1720591844716,-500.0,0.00013698,2]
[331626328,1720591844726,-524.43,0.00013698,2]
[331626329,1720591844735,-500.0,0.00013698,2]
[331626330,1720591844745,-1386.92,0.00013698,2]
[331626331,1720591844755,-624.58,0.00013698,2]
[331626332,1720591844764,-500.0,0.00013698,2]
[331626333,1720591844774,-500.0,0.00013698,2]
[331626334,1720591844784,-500.0,0.00013698,2]
[331626335,1720591844793,-500.0,0.00013698,2]
[331626336,1720591844803,-563.79,0.00013698,2]
[331626337,1720591844813,-1424.22,0.00013698,2]
[331626338,1720591844823,-756.62,0.00013698,2]
[331626339,1720591844833,-500.0,0.00013698,2]
[331626340,1720591844843,-153.29227662,0.00013698,2]
[331626341,1720591844853,-1478.6,0.00013698,2]
[331626342,1720591844863,-408.96282283,0.00013698,2]
[331626343,1720591844877,-500.0,0.00013698,2]
[331626344,1720591844887,-235.93607,0.00013698,2]
[331626345,1720591844897,-235.93607,0.00013698,2]
[331626346,1720591844907,-530.55,0.00013698,2]
[331626347,1720591844917,-500.0,0.00013698,2]
[331626348,1720591844926,-500.0,0.00013698,2]
[331626349,1720591844936,-235.93607,0.00013698,2]
[331626350,1720591844946,-235.93607,0.00013698,2]
[331626351,1720591844956,-151.0,0.00013698,2]
[331626352,1720591844966,-151.0,0.00013698,2]
[331626353,1720591844976,-690.76,0.00013698,2]
[331626354,1720591844985,-500.0,0.00013698,2]
[331626355,1720591844995,-500.0,0.00013698,2]
[331626356,1720591845005,-500.0,0.00013698,2]
[331626357,1720591845014,-500.0,0.00013698,2]
[331626358,1720591845024,-1182.32,0.00013698,2]
[331626359,1720591845034,-391.67446121,0.00013698,2]
[331626360,1720591845043,-500.0,0.00013698,2]
[331626361,1720591845053,-808.77,0.00013698,2]
[331626362,1720591845062,-500.0,0.00013698,2]
[331626363,1720591845072,-500.0,0.00013698,2]
[331626364,1720591845082,-1456.46,0.00013698,2]
[331626365,1720591845092,-500.0,0.00013698,2]
[331626366,1720591845105,-1306.66,0.00013698,2]
[331626367,1720591845114,-508.00589381,0.00013698,2]
[331626368,1720591845124,-574.28,0.00013698,2]
[331626369,1720591845133,-500.0,0.00013698,2]
[331626370,1720591845143,-1270.33,0.00013698,2]
[331626371,1720591845152,-500.0,0.00013698,2]
[331626372,1720591845164,-500.0,0.00013698,2]
[331626373,1720591845174,-500.0,0.00013698,2]
[331626374,1720591845183,-500.0,0.00013698,2]
[331626375,1720591845192,-500.0,0.00013698,2]
[331626376,1720591845202,-500.0,0.00013698,2]
[331626377,1720591845212,-500.0,0.00013698,2]
[331626378,1720591845221,-500.0,0.00013698,2]
[331626379,1720591845230,-500.0,0.00013698,2]
[331626380,1720591845240,-1691.29,0.00013698,2]
[331626381,1720591845249,-500.0,0.00013698,2]
[331626382,1720591845259,-500.0,0.00013698,2]
[331626383,1720591845269,-500.0,0.00013698,2]
[331626384,1720591845279,-500.0,0.00013698,2]
[331626385,1720591845289,-500.0,0.00013698,2]
[331626386,1720591845298,-500.0,0.00013698,2]
[331626387,1720591845308,-500.0,0.00013698,2]
[331626388,1720591845319,-500.0,0.00013698,2]
[331626389,1720591845329,-1278.59,0.00013698,2]
[331626390,1720591845339,-2704.89,0.00013698,2]
[331626391,1720591845350,-500.0,0.00013698,2]
[331626392,1720591845360,-1815.87,0.00013698,2]
[331626393,1720591845369,-500.0,0.00013698,2]
[331626394,1720591845379,-500.0,0.00013698,2]
[331626395,1720591845389,-151.0,0.00013698,2]
[331626396,1720591845399,-500.0,0.00013698,2]
[331626397,1720591845408,-151.0,0.00013698,2]
[331626398,1720591845418,-500.0,0.00013698,2]
[331626399,1720591845427,-823.05,0.00013698,2]
[331626400,1720591845437,-500.0,0.00013698,2]
[331626401,1720591845447,-595.33906988,0.00013698,2]
[331626402,1720591845456,-730.91,0.00013698,2]
[331626403,1720591845467,-500.0,0.00013698,2]
[331626404,1720591845476,-603.51,0.00013698,2]
[331626405,1720591845487,-500.0,0.00013698,2]
[331626406,1720591845497,-500.0,0.00013698,2]
[331626407,1720591845507,-931.29,0.00013698,2]
[331626408,1720591845516,-536.01,0.00013698,2]
[331626409,1720591845527,-500.0,0.00013698,2]
[331626410,1720591845537,-500.0,0.00013698,2]
[331626411,1720591845547,-808.99,0.00013698,2]
[331626412,1720591845556,-500.0,0.00013698,2]
[331626413,1720591845566,-500.0,0.00013698,2]
[331626414,1720591845575,-500.0,0.00013698,2]
[331626415,1720591845585,-500.0,0.00013698,2]
[331626416,1720591845596,-500.0,0.00013698,2]
[331626417,1720591845608,-500.0,0.00013698,2]
[331626418,1720591845618,-500.0,0.00013698,2]
[331626419,1720591845627,-500.0,0.00013698,2]
[331626420,1720591845638,-500.0,0.00013698,2]
[331626421,1720591845647,-500.0,0.00013698,2]
[331626422,1720591845657,-500.0,0.00013698,2]
[331626423,1720591845667,-500.0,0.00013698,2]
[331626424,1720591845676,-500.0,0.00013698,2]
[331626425,1720591845686,-1120.54,0.00013698,2]
[331626426,1720591845695,-500.0,0.00013698,2]
[331626427,1720591845714,-500.0,0.00013698,2]
[331626428,1720591845724,-500.0,0.00013698,2]
[331626429,1720591845734,-881.56,0.00013698,2]
[331626430,1720591845743,-500.0,0.00013698,2]
[331626431,1720591845753,-500.0,0.00013698,2]
[331626432,1720591845763,-500.0,0.00013698,2]
[331626433,1720591845773,-500.0,0.00013698,2]
[331626434,1720591845783,-500.0,0.00013698,2]
[331626435,1720591845792,-1108.29,0.00013698,2]
[331626436,1720591845802,-500.0,0.00013698,2]
[331626437,1720591845814,-500.0,0.00013698,2]
[331626438,1720591845824,-500.0,0.00013698,2]
[331626440,1720591845834,-500.0,0.00013698,2]
[331626441,1720591845844,-500.0,0.00013698,2]
[331626442,1720591845854,-500.0,0.00013698,2]
[331626443,1720591845863,-500.0,0.00013698,2]
[331626444,1720591845874,-875.19,0.00013698,2]
[331626445,1720591845884,-937.1,0.00013698,2]
[331626446,1720591845893,-500.0,0.00013698,2]
[331626447,1720591845903,-500.0,0.00013698,2]
[331626448,1720591845912,-500.0,0.00013698,2]
[331626449,1720591845922,-577.4,0.00013698,2]
[331626450,1720591845932,-715.31,0.00013698,2]
[331626451,1720591845943,-1116.29,0.00013698,2]
[331626452,1720591845954,-500.0,0.00013698,2]
[331626453,1720591845963,-500.0,0.00013698,2]
[331626454,1720591845973,-500.0,0.00013698,2]
[331626455,1720591845984,-500.0,0.00013698,2]
[331626456,1720591845994,-620.06130304,0.00013698,2]
[331626457,1720591846004,-151.0,0.00013698,2]
[331626458,1720591846014,-151.0,0.00013698,2]
[331626459,1720591846024,-500.0,0.00013698,2]
[331626460,1720591846034,-1892.57,0.00013698,2]
[331626461,1720591846045,-875.61,0.00013698,2]
[331626462,1720591846057,-500.0,0.00013698,2]
[331626463,1720591846067,-743.19,0.00013698,2]
[331626464,1720591846077,-613.73,0.00013698,2]
[331626465,1720591846086,-1253.8,0.00013698,2]
[331626466,1720591846097,-500.0,0.00013698,2]
[331626467,1720591846108,-397.21114762,0.00013698,2]
[331626468,1720591846117,-511.81,0.00013698,2]
[331626469,1720591846126,-500.0,0.00013698,2]
[331626470,1720591846136,-685.6,0.00013698,2]
[331626471,1720591846145,-500.0,0.00013698,2]
[331626472,1720591846155,-578.6642,0.00013698,2]
[331626473,1720591846164,-500.0,0.00013698,2]
[331626474,1720591846174,-1543.3,0.00013698,2]
[331626475,1720591846185,-500.0,0.00013698,2]
[331626476,1720591846196,-577.40348743,0.00013698,2]
[331626477,1720591846208,-500.0,0.00013698,2]
[331626478,1720591846220,-500.0,0.00013698,2]
[331626479,1720591846231,-1348.23,0.00013698,2]
[331626480,1720591846240,-1146.04,0.00013698,2]
[331626481,1720591846254,-500.0,0.00013698,2]
[331626482,1720591846263,-864.25,0.00013698,2]
[331626483,1720591846273,-500.0,0.00013698,2]
[331626484,1720591846283,-500.0,0.00013698,2]
[331626485,1720591846293,-500.0,0.00013698,2]
[331626486,1720591846304,-1410.74,0.00013698,2]
[331626487,1720591846314,-504.48711167,0.00013698,2]
[331626488,1720591846324,-500.0,0.00013698,2]
[331626489,1720591846335,-151.0,0.00013698,2]
[331626490,1720591846346,-500.0,0.00013698,2]
[331626491,1720591846358,-2002.75,0.00013698,2]
[331626492,1720591846368,-151.0,0.00013698,2]
[331626493,1720591846378,-151.0,0.00013698,2]
[331626494,1720591846390,-500.0,0.00013698,2]
[331626495,1720591846399,-500.0,0.00013698,2]
[331626498,1720591846856,-151.0,0.00013698,2]
[331626499,1720591846867,-151.0,0.00013698,2]
[331626500,1720591846876,-998.07,0.00013698,2]
[331626501,1720591846886,-874.59,0.00013698,2]
[331626502,1720591846896,-500.0,0.00013698,2]
[331626503,1720591846906,-500.0,0.00013698,2]
[331626504,1720591846916,-920.24,0.00013698,2]
[331626505,1720591846926,-500.0,0.00013698,2]
[331626506,1720591846936,-151.0,0.00013698,2]
[331626507,1720591846945,-500.0,0.00013698,2]
[331626508,1720591846955,-500.0,0.00013698,2]
[331626509,1720591846967,-500.0,0.00013698,2]
[331626510,1720591846976,-500.0,0.00013698,2]
[331626511,1720591846986,-1407.04,0.00013698,2]
[331626512,1720591846995,-500.0,0.00013698,2]
[331626513,1720591847005,-2564.4,0.00013698,2]
[331626514,1720591847015,-785.48,0.00013698,2]
[331626515,1720591847026,-500.0,0.00013698,2]
[331626516,1720591847035,-500.0,0.00013698,2]
[331626517,1720591847045,-155.38601885,0.00013698,2]
[331626518,1720591847054,-852.64,0.00013698,2]
[331626519,1720591847064,-500.0,0.00013698,2]
[331626520,1720591847073,-500.0,0.00013698,2]
[331626521,1720591847082,-500.0,0.00013698,2]
[331626522,1720591847093,-500.0,0.00013698,2]
[331626523,1720591847103,-500.0,0.00013698,2]
[331626524,1720591847113,-500.0,0.00013698,2]
[331626525,1720591847122,-845.76,0.00013698,2]
[331626526,1720591847131,-500.0,0.00013698,2]
[331626527,1720591847141,-500.0,0.00013698,2]
[331626528,1720591847150,-500.0,0.00013698,2]
[331626529,1720591847160,-481.05641946,0.00013698,2]
[331626530,1720591847170,-1211.81,0.00013698,2]
[331626531,1720591847180,-629.47,0.00013698,2]
[331626532,1720591847189,-500.0,0.00013698,2]
[331626533,1720591847199,-381.84714498,0.00013698,2]
[331626534,1720591847208,-1805.06,0.00013698,2]
[331626535,1720591847217,-657.09,0.00013698,2]
[331626536,1720591847227,-711.19,0.00013698,2]
[331626537,1720591847237,-500.0,0.00013698,2]
[331626538,1720591847246,-500.0,0.00013698,2]
[331626539,1720591847255,-659.05,0.00013698,2]
[331626540,1720591847264,-500.0,0.00013698,2]
[331626541,1720591847274,-1211.77,0.00013698,2]
[331626542,1720591847283,-500.0,0.00013698,2]
[331626543,1720591847292,-500.0,0.00013698,2]
[331626544,1720591847302,-1213.11,0.00013698,2]
[331626545,1720591847312,-151.0,0.00013698,2]
[331626546,1720591847322,-151.0,0.00013698,2]
[331626547,1720591847333,-500.0,0.00013698,2]
[331626548,1720591847342,-20000.0,0.00013698,2]
[331626549,1720591847353,-645.78,0.00013698,2]
[331626550,1720591847367,-500.0,0.00013698,2]
[331626551,1720591847376,-500.0,0.00013698,2]
[331626552,1720591847386,-1714.22,0.00013698,2]
[331626553,1720591847395,-500.0,0.00013698,2]
[331626554,1720591847406,-600.86,0.00013698,2]
[331626555,1720591847415,-153.5829,0.00013698,2]
[331626556,1720591847425,-500.0,0.00013698,2]
[331626557,1720591847434,-521.49,0.00013698,2]
[331626558,1720591847444,-500.0,0.00013698,2]
[331626559,1720591847454,-778.67,0.00013698,2]
[331626560,1720591847464,-500.0,0.00013698,2]
[331626561,1720591847473,-500.0,0.00013698,2]
[331626562,1720591847483,-151.0,0.00013698,2]
[331626563,1720591847494,-500.0,0.00013698,2]
[331626564,1720591847503,-151.0,0.00013698,2]
[331626565,1720591847515,-151.0,0.00013698,2]
[331626566,1720591847525,-151.0,0.00013698,2]
[331626567,1720591847535,-500.0,0.00013698,2]
[331626568,1720591847546,-500.0,0.00013698,2]
[331626569,1720591847557,-500.0,0.00013698,2]
[331626570,1720591847568,-627.17,0.00013698,2]
[331626571,1720591847579,-506.61,0.00013698,2]
[331626572,1720591847588,-151.0,0.00013698,2]
[331626573,1720591847600,-615.1,0.00013698,2]
[331626574,1720591847611,-151.0,0.00013698,2]
[331626575,1720591847621,-151.0,0.00013698,2]
[331626576,1720591847632,-694.82,0.00013698,2]
[331626577,1720591847641,-500.0,0.00013698,2]
[331626578,1720591847651,-151.0,0.00013698,2]
[331626579,1720591847662,-151.0,0.00013698,2]
[331626580,1720591847672,-500.0,0.00013698,2]
[331626581,1720591847683,-151.0,0.00013698,2]
[331626582,1720591847693,-151.0,0.00013698,2]
[331626583,1720591847705,-243.71214,0.00013698,2]
[331626584,1720591847715,-1705.16,0.00013698,2]
[331626585,1720591847724,-1303.83,0.00013698,2]
[331626586,1720591847734,-500.0,0.00013698,2]
[331626587,1720591847744,-1049.09,0.00013698,2]
[331626588,1720591847754,-500.0,0.00013698,2]
[331626589,1720591847764,-663.8,0.00013698,2]
[331626590,1720591847774,-500.0,0.00013698,2]
[331626591,1720591847784,-500.0,0.00013698,2]
[331626592,1720591847795,-151.0,0.00013698,2]
[331626593,1720591847804,-151.0,0.00013698,2]
[331626594,1720591847815,-2303.66,0.00013698,2]
[331626595,1720591847825,-1960.02,0.00013698,2]
[331626596,1720591847835,-151.0,0.00013698,2]
[331626597,1720591847844,-500.0,0.00013698,2]
[331626598,1720591847856,-151.0,0.00013698,2]
[331626599,1720591847866,-500.0,0.00013698,2]
[331626600,1720591847877,-500.0,0.00013698,2]
[331626601,1720591847887,-500.0,0.00013698,2]
[331626602,1720591847898,-895.78,0.00013698,2]
[331626603,1720591847911,-151.0,0.00013698,2]
[331626604,1720591847922,-151.0,0.00013698,2]
[331626605,1720591847934,-151.0,0.00013698,2]
[331626606,1720591847944,-151.0,0.00013698,2]
[331626607,1720591847955,-1348.05,0.00013698,2]
[331626608,1720591847965,-500.0,0.00013698,2]
[331626609,1720591847975,-1480.39,0.00013698,2]
[331626610,1720591847984,-500.0,0.00013698,2]
[331626611,1720591847994,-619.25,0.00013698,2]
[331626612,1720591848003,-500.0,0.00013698,2]
[331626613,1720591848013,-500.0,0.00013698,2]
[331626614,1720591848022,-500.0,0.00013698,2]
[331626615,1720591848031,-151.0,0.00013698,2]
[331626616,1720591848041,-1135.24,0.00013698,2]
[331626617,1720591848051,-506.39620448,0.00013698,2]
[331626618,1720591848060,-151.0,0.00013698,2]
[331626619,1720591848070,-500.0,0.00013698,2]
[331626620,1720591848080,-151.0,0.00013698,2]
[331626621,1720591848091,-151.0,0.00013698,2]
[331626622,1720591848102,-500.0,0.00013698,2]
[331626623,1720591848112,-650.02,0.00013698,2]
[331626624,1720591848122,-500.0,0.00013698,2]
[331626625,1720591848131,-278.33444391,0.00013698,2]
[331626626,1720591848140,-500.0,0.00013698,2]
[331626627,1720591848149,-151.0,0.00013698,2]
[331626628,1720591848159,-1335.95,0.00013698,2]
[331626629,1720591848168,-237.557696,0.00013698,2]
[331626630,1720591848177,-500.0,0.00013698,2]
[331626631,1720591848186,-555.91,0.00013698,2]
[331626632,1720591848195,-2500.0,0.00013698,3]
[331626633,1720591848205,-500.0,0.00013698,2]
[331626634,1720591848214,-1298.03,0.00013698,2]
[331626635,1720591848223,-1082.16,0.00013698,2]
[331626636,1720591848233,-1760.12,0.00013698,2]
[331626637,1720591848243,-789.32,0.00013698,2]
[331626638,1720591848252,-151.0,0.00013698,2]
[331626639,1720591848262,-651.7,0.00013698,2]
[331626640,1720591848272,-151.0,0.00013698,2]
[331626641,1720591848281,-299.428551,0.00013698,2]
[331626642,1720591848291,-1015.43,0.00013698,2]
[331626643,1720591848300,-151.0,0.00013698,2]
[331626644,1720591848310,-151.0,0.00013698,2]
[331626645,1720591848320,-151.0,0.00013698,2]
[331626646,1720591848329,-151.0,0.00013698,2]
[331626647,1720591848339,-500.0,0.00013698,2]
[331626648,1720591848350,-1616.63,0.00013698,2]
[331626649,1720591848359,-2585.22,0.00013698,2]
[331626650,1720591848369,-2128.17,0.00013698,2]
[331626651,1720591848378,-2026.27,0.00013698,2]
[331626652,1720591848388,-500.0,0.00013698,2]
[331626653,1720591848397,-151.0,0.00013698,2]
[331626654,1720591848407,-647.4,0.00013698,2]
[331626655,1720591848415,-500.0,0.00013698,2]
[331626656,1720591848425,-500.0,0.00013698,2]
[331626657,1720591848434,-151.0,0.00013698,2]
[331626658,1720591848443,-1002.22,0.00013698,2]
[331626659,1720591848452,-151.0,0.00013698,2]
[331626660,1720591848461,-151.0,0.00013698,2]
[331626661,1720591848471,-500.0,0.00013698,2]
[331626662,1720591848481,-1459.25,0.00013698,2]
[331626663,1720591848490,-500.0,0.00013698,2]
[331626664,1720591848499,-419.65579262,0.00013698,2]
[331626665,1720591848509,-500.0,0.00013698,2]
[331626666,1720591848518,-1682.12,0.00013698,2]
[331626667,1720591848528,-1276.87010162,0.00013698,2]
[331626668,1720591848537,-547.23,0.00013698,2]
[331626669,1720591848547,-500.0,0.00013698,2]
[331626670,1720591848558,-1164.09,0.00013698,2]
[331626671,1720591848568,-958.61,0.00013698,2]
[331626672,1720591848578,-500.0,0.00013698,2]
[331626673,1720591848587,-500.0,0.00013698,2]
[331626674,1720591848597,-500.0,0.00013698,2]
[331626675,1720591848608,-500.0,0.00013698,2]
[331626676,1720591848617,-500.0,0.00013698,2]
[331626677,1720591848627,-500.0,0.00013698,2]
[331626678,1720591848636,-500.0,0.00013698,2]
[331626679,1720591848645,-500.0,0.00013698,2]
[331626680,1720591848655,-500.0,0.00013698,2]
[331626681,1720591848666,-500.0,0.00013698,2]
[331626682,1720591848676,-813.75,0.00013698,2]
[331626683,1720591848686,-500.0,0.00013698,2]
[331626684,1720591848695,-774.68,0.00013698,2]
[331626685,1720591848705,-235.85465544,0.00013698,2]
[331626686,1720591848714,-500.0,0.00013698,2]
[331626687,1720591848724,-500.0,0.00013698,2]
[331626688,1720591848733,-500.0,0.00013698,2]
[331626689,1720591848744,-500.0,0.00013698,2]
[331626690,1720591848754,-1476.02,0.00013698,2]
[331626691,1720591848764,-500.0,0.00013698,2]
[331626692,1720591848773,-500.0,0.00013698,2]
[331626693,1720591848783,-500.0,0.00013698,2]
[331626694,1720591848794,-500.0,0.00013698,2]
[331626695,1720591848803,-500.0,0.00013698,2]
[331626696,1720591848816,-1690.86,0.00013698,2]
[331626697,1720591848826,-698.32,0.00013698,2]
[331626698,1720591848836,-500.0,0.00013698,2]
[331626699,1720591848846,-500.0,0.00013698,2]
[331626700,1720591848858,-767.34,0.00013698,2]
[331626701,1720591848868,-1145.6,0.00013698,2]
[331626702,1720591848880,-1538.11,0.00013698,2]
[331626703,1720591848889,-608.16,0.00013698,2]
[331626704,1720591848899,-500.0,0.00013698,2]
[331626705,1720591848908,-585.91703501,0.00013698,2]
[331626706,1720591848917,-500.0,0.00013698,2]
[331626707,1720591848927,-500.0,0.00013698,2]
[331626708,1720591848936,-500.0,0.00013698,2]
[331626709,1720591848946,-500.0,0.00013698,2]
[331626710,1720591848955,-500.0,0.00013698,2]
[331626711,1720591848965,-500.0,0.00013698,2]
[331626712,1720591848974,-500.0,0.00013698,2]
[331626713,1720591848984,-1257.84,0.00013698,2]
[331626714,1720591848994,-822.23,0.00013698,2]
[331626715,1720591849011,-500.0,0.00013698,2]
[331626716,1720591849024,-500.0,0.00013698,2]
[331626717,1720591849034,-576.59,0.00013698,2]
[331626718,1720591849044,-1539.01,0.00013698,2]
[331626719,1720591849054,-722.18,0.00013698,2]
[331626720,1720591849063,-2476.36,0.00013698,2]
[331626721,1720591849073,-1657.19,0.00013698,2]
[331626722,1720591849083,-500.0,0.00013698,2]
[331626723,1720591849094,-500.0,0.00013698,2]
[331626724,1720591849105,-500.0,0.00013698,2]
[331626725,1720591849115,-500.0,0.00013698,2]
[331626726,1720591849125,-774.31,0.00013698,2]
[331626727,1720591849134,-500.0,0.00013698,2]
[331626728,1720591849144,-500.0,0.00013698,2]
[331626729,1720591849153,-686.24,0.00013698,2]
[331626730,1720591849163,-500.0,0.00013698,2]
[331626731,1720591849172,-884.71,0.00013698,2]
[331626732,1720591849181,-500.0,0.00013698,2]
[331626733,1720591849191,-672.3,0.00013698,2]
[331626734,1720591849201,-500.0,0.00013698,2]
[331626735,1720591849210,-500.0,0.00013698,2]
[331626736,1720591849219,-500.0,0.00013698,2]
[331626737,1720591849400,-563.39,0.00013698,2]
[331626738,1720591849410,-151.0,0.00013698,2]
[331626739,1720591849420,-151.0,0.00013698,2]
[331626740,1720591849430,-500.0,0.00013698,2]
[331626741,1720591849440,-500.0,0.00013698,2]
[331626742,1720591849450,-500.0,0.00013698,2]
[331626743,1720591849459,-743.18,0.00013698,2]
[331626744,1720591849469,-3086.32,0.00013698,2]
[331626745,1720591849478,-2481.44,0.00013698,2]
[331626746,1720591849488,-500.0,0.00013698,2]
[331626747,1720591849497,-500.0,0.00013698,2]
[331626748,1720591849508,-584.98,0.00013698,2]